fUSD/lending_fUSD_20240315
["ID","MTS","AMOUNT","RATE_DAILY","PERIOD"]
[318942548,1710462634017,-2390.65,0.00019079,2]
[318942549,1710462634027,-715.8945,0.00019084,2]
[318942550,1710462634037,-500.0,0.00019084,2]
[318942551,1710462634047,-502.1792,0.00019084,2]
[318942552,1710462634057,-163.76442437,0.00019106,2]
[318942553,1710462634067,-1531.5999583,0.00019135,2]
[318942554,1710462634077,-2390.65,0.00019146,2]
[318942555,1710462634086,-420.91027363,0.00019178,2]
[318942556,1710462634095,-151.36,0.00019178,2]
[318942557,1710462634104,-150.01,0.00019179,2]
[318942558,1710462634114,-2426.90603505,0.00019179,2]
[318942559,1710462634123,-2000.0,0.0001918,2]
[318942560,1710462634132,-200.0,0.0001918,2]
[318942561,1710462634141,-2000.0,0.0001918,2]
[318942562,1710462634153,-200.0,0.0001918,2]
[318942563,1710462634164,-84672.3449549,0.00019194,2]
[318942564,1710462634174,-16711.9414618,0.00019207,2]
[318942565,1710462634183,-5588.3635747,0.00019207,2]
[318942566,1710462634193,-2390.65,0.00019214,2]
[318942567,1710462634202,-205.36,0.0001922,2]
[318942568,1710462634212,-163.76442437,0.00019238,2]
[318942569,1710462634222,-250.0,0.00019277,2]
[318942570,1710462634231,-2390.65,0.00019281,2]
[318942571,1710462634240,-205.36,0.00019287,2]
[318942572,1710462634250,-336.01,0.00019332,2]
[318942573,1710462634259,-157.35,0.00019337,2]
[318942574,1710462634269,-2390.65,0.00019348,2]
[318942575,1710462634278,-205.36,0.00019354,2]
[318942576,1710462634288,-163.76442437,0.00019371,2]
[318942577,1710462634298,-2000.0,0.00019372,2]
[318942578,1710462634307,-200.0,0.00019372,2]
[318942579,1710462634317,-2000.0,0.00019372,2]
[318942580,1710462634326,-200.0,0.00019372,2]
[318942581,1710462634335,-336.01,0.00019385,2]
[318942582,1710462634345,-2390.65,0.00019415,2]
[318942583,1710462634354,-336.01,0.00019438,2]
[318942584,1710462634364,-2390.65,0.00019482,2]
[318942585,1710462634374,-336.01,0.00019491,2]
[318942586,1710462634383,-163.76442437,0.00019503,2]
[318942587,1710462634392,-180.0,0.00019536,2]
[318942588,1710462634403,-336.01,0.00019544,2]
[318942589,1710462634413,-2000.0,0.00019566,2]
[318942590,1710462634422,-200.0,0.00019566,2]
[318942591,1710462634431,-200.0,0.00019566,2]
[318942592,1710462634441,-168.38,0.00019566,2]
[318942593,1710462634450,-1531.5999583,0.00019594,2]
[318942594,1710462634460,-336.01,0.00019597,2]
[318942595,1710462634470,-630.08,0.00019609,2]
[318942596,1710462634479,-163.76442437,0.00019635,2]
[318942597,1710462634489,-336.01,0.0001965,2]
[318942598,1710462634499,-336.01,0.00019703,2]
[318942599,1710462634508,-360.18194973,0.00019725,5]
[318942600,1710462634518,-425.613434,0.00019726,2]
[318942601,1710462634528,-13977.12,0.00019726,2]
[318942602,1710462634538,-336.01,0.00019756,2]
[318942603,1710462634547,-2000.0,0.00019761,2]
[318942604,1710462634557,-200.0,0.00019761,2]
[318942605,1710462634566,-200.0,0.00019761,2]
[318942606,1710462634575,-163.76442437,0.00019768,2]
[318942607,1710462634585,-1531.5999583,0.00019808,2]
[318942608,1710462634595,-336.01,0.00019809,2]
[318942609,1710462634605,-336.01,0.00019862,2]
[318942610,1710462634616,-28475.25717564,0.000199,2]
[318942611,1710462634626,-163.76442437,0.000199,2]
[318942612,1710462634635,-336.01,0.00019915,2]
[318942613,1710462634645,-2000.0,0.00019959,2]
[318942614,1710462634658,-200.0,0.00019959,2]
[318942615,1710462634668,-200.0,0.00019959,2]
[318942616,1710462634678,-336.01,0.00019968,2]
[318942617,1710462634688,-13977.12,0.00019974,2]
[318942618,1710462634698,-333.59944751,0.0001998,2]
[318942619,1710462634708,-1608.07178005,0.0002,2]
[318942620,1710462634717,-5000.0,0.0002,3]
[318942621,1710462634728,-1360.71770015,0.0002,2]
[318942622,1710462634737,-1660.16789356,0.0002,2]
[318942623,1710462634747,-155.0,0.0002,2]
[318942624,1710462634757,-1753.50825173,0.0002,2]
[318942625,1710462634767,-278.44524849,0.0002,2]
[318942626,1710462634777,-1246.07597907,0.0002,2]
[318942627,1710462634787,-155.0,0.0002,2]
[318942628,1710462634798,-5887.35,0.0002,2]
[318942629,1710462634808,-34145.25493907,0.0002,2]
[318942630,1710462634817,-150.0,0.0002,3]
[318942631,1710462634827,-378.76893739,0.0002,2]
[318942632,1710462634836,-150.0,0.0002,2]
[318942633,1710462634845,-1398.56904323,0.0002,7]
[318942634,1710462634855,-584.34,0.00020002,2]
[318942635,1710462634864,-211.43,0.0002002,2]
[318942636,1710462634874,-336.01,0.00020021,2]
[318942637,1710462634884,-336.01,0.00020074,2]
[318942638,1710462634893,-210.0,0.00020101,2]
[318942639,1710462634904,-1531.5999588,0.00020103,2]
[318942640,1710462634913,-336.01,0.00020127,2]
[318942641,1710462634922,-495.93,0.00020129,2]
[318942642,1710462634931,-151.36,0.00020137,2]
[318942643,1710462634940,-336.01,0.0002018,2]
[318942644,1710462634949,-272.4,0.00020209,2]
[318942645,1710462634958,-13977.12,0.00020222,2]
[318942646,1710462634968,-200.0,0.00020229,2]
[318942647,1710462634977,-336.01,0.00020233,2]
[318942648,1710462634986,-336.01,0.00020286,2]
[318942649,1710462634995,-336.01,0.00020339,2]
[318942650,1710462635004,-151.0,0.00020429,2]
[318942651,1710462635013,-151.0,0.00020429,2]
[318942652,1710462635023,-169.994208,0.00020429,2]
[318942653,1710462635032,-151.0,0.00020429,2]
[318942654,1710462635041,-151.0,0.00020429,2]
[318942655,1710462635051,-9900.21,0.00020429,2]
[318942656,1710462635060,-208.65915766,0.0002046,2]
[318942657,1710462635069,-13977.12,0.0002047,2]
[318942658,1710462635079,-263.687511,0.0002047,2]
[318942659,1710462635088,-151.0,0.0002047,2]
[318942660,1710462635097,-151.0,0.0002047,2]
[318942661,1710462635107,-151.0,0.0002047,2]
[318942662,1710462635116,-151.0,0.0002047,2]
[318942663,1710462635126,-2500.0,0.000205,2]
[318942664,1710462635135,-425.613434,0.00020548,2]
[318942665,1710462635144,-13977.12,0.00020718,2]
[318942666,1710462635156,-159.86,0.00020749,2]
[318942667,1710462635165,-150.37543753,0.000209,2]
[318942668,1710462635175,-150.37543722,0.000209,2]
[318942669,1710462635184,-150.37543722,0.000209,2]
[318942670,1710462635194,-150.37543722,0.000209,2]
[318942671,1710462635204,-150.37543722,0.000209,2]
[318942672,1710462635213,-150.37543722,0.000209,2]
[318942673,1710462635223,-150.37543722,0.000209,2]
[318942674,1710462635232,-150.37543722,0.000209,2]
[318942675,1710462635242,-150.37543722,0.000209,2]
[318942676,1710462635252,-150.37543722,0.000209,2]
[318942677,1710462635261,-150.37543722,0.000209,2]
[318942678,1710462635271,-13977.12,0.00020966,2]
[318942679,1710462635280,-150.37543722,0.00020981,2]
[318942680,1710462635290,-360.18194973,0.00020999,5]
[318942681,1710462635300,-803.19690949,0.00021,2]
[318942682,1710462635310,-623.73428565,0.00021,2]
[318942683,1710462635320,-1381.99464465,0.00021,2]
[318942684,1710462635330,-20007.8366086,0.00021,2]
[318942685,1710462635340,-7022.61845376,0.00021,2]
[318942686,1710462635349,-7022.97130985,0.00021,2]
[318942687,1710462635359,-20008.59841371,0.00021,2]
[318942688,1710462635368,-20008.44747679,0.00021,2]
[318942689,1710462635378,-20007.87009216,0.00021,2]
[318942690,1710462635387,-20007.8950658,0.00021,2]
[318942691,1710462635401,-6944.38631267,0.00021,2]
[318942692,1710462635410,-550.0,0.00021,3]
[318942693,1710462635419,-1500.0,0.00021,2]
[318942694,1710462635428,-4108.74,0.00021072,2]
[318942695,1710462635438,-10870.44,0.00021096,2]
[318942696,1710462635447,-187.51,0.00021096,2]
[318942697,1710462635456,-151.36,0.00021096,2]
[318942698,1710462635465,-154.41,0.00021163,2]
[318942699,1710462635475,-150.37543722,0.0002117,2]
[318942700,1710462635484,-1001.0188427,0.000212,2]
[318942701,1710462635494,-13977.12,0.00021214,2]
[318942702,1710462635503,-150.37543722,0.00021359,2]
[318942703,1710462635513,-425.613434,0.0002137,2]
[318942704,1710462635523,-13977.12,0.00021462,2]
[318942705,1710462635533,-3000.0,0.0002149,2]
[318942706,1710462635542,-2848.0,0.000215,2]
[318942707,1710462635554,-1500.0,0.000215,2]
[318942708,1710462635564,-150.37543722,0.00021549,2]
[318942709,1710462635573,-800.0,0.0002161,2]
[318942710,1710462635584,-200.0,0.0002161,2]
[318942711,1710462635593,-544.0,0.000217,2]
[318942712,1710462635602,-150.37543722,0.00021738,2]
[318942713,1710462635614,-168.38,0.0002174,2]
[318942714,1710462635623,-19999.99,0.00021757,2]
[318942715,1710462635632,-493.68,0.00021757,2]
[318942716,1710462635642,-5474.71,0.00021757,2]
[318942717,1710462635656,-150.0,0.00021775,2]
[318942718,1710462635665,-630.08,0.00021788,2]
[318942719,1710462635677,-150.0,0.00021844,2]
[318942720,1710462635687,-150.0,0.00021866,2]
[318942721,1710462635697,-150.0,0.00021871,2]
[318942722,1710462635706,-150.0,0.00021885,2]
[318942723,1710462635716,-150.0,0.00021889,2]
[318942724,1710462635725,-2000.0,0.000219,2]
[318942725,1710462635735,-10000.0,0.00021918,2]
[318942726,1710462635745,-250.0,0.00021918,2]
[318942727,1710462635755,-11900.0,0.00021918,2]
[318942728,1710462635764,-155.0,0.00021918,2]
[318942729,1710462635773,-150.37543722,0.00021927,2]
[318942730,1710462635783,-150.0,0.00021971,2]
[318942731,1710462635793,-150.0,0.00021978,2]
[318942732,1710462635803,-150.0,0.00021979,2]
[318942733,1710462635813,-150.0,0.00021998,2]
[318942734,1710462635822,-150.0,0.00022,4]
[318942735,1710462635831,-333.87905145,0.00022,2]
[318942736,1710462635841,-1500.0,0.00022,2]
[318942737,1710462635850,-150.0,0.00022012,2]
[318942738,1710462635859,-150.0,0.00022013,2]
[318942739,1710462635869,-150.0,0.00022026,2]
[318942740,1710462635880,-1500.0,0.00022034,2]
[318942741,1710462635891,-151.36,0.00022055,2]
[318942742,1710462635906,-150.0,0.00022057,2]
[318942743,1710462635917,-150.0,0.0002206,2]
[318942744,1710462635927,-150.0,0.00022064,2]
[318942745,1710462635937,-150.0,0.00022067,2]
[318942746,1710462635948,-150.0,0.00022084,2]
[318942747,1710462635958,-150.0,0.00022096,2]
[318942748,1710462635969,-150.0,0.00022099,2]
[318942749,1710462635980,-293.0,0.00022111,2]
[318942750,1710462635990,-150.37543722,0.00022116,2]
[318942751,1710462636000,-150.0,0.00022157,2]
[318942752,1710462636010,-150.0,0.00022172,2]
[318942753,1710462636020,-150.0,0.00022183,2]
[318942754,1710462636029,-425.613434,0.00022192,2]
[318942755,1710462636039,-150.0,0.00022217,2]
[318942756,1710462636048,-150.0,0.0002223,2]
[318942757,1710462636057,-211.43,0.00022244,2]
[318942758,1710462636066,-150.0,0.00022254,2]
[318942759,1710462636076,-584.34,0.00022266,2]
[318942760,1710462636085,-150.0,0.0002227,2]
[318942761,1710462636094,-150.0,0.00022271,2]
[318942762,1710462636104,-150.0,0.00022295,2]
[318942763,1710462636113,-150.37543722,0.00022305,2]
[318942764,1710462636122,-150.0,0.00022316,2]
[318942765,1710462636131,-150.0,0.00022319,2]
[318942766,1710462636140,-150.0,0.00022353,2]
[318942767,1710462636152,-150.0,0.00022364,2]
[318942768,1710462636162,-495.93,0.00022365,2]
[318942769,1710462636361,-150.0,0.00022367,2]
[318942770,1710462636406,-150.0,0.00022372,2]
[318942771,1710462636416,-150.0,0.00022378,2]
[318942772,1710462636426,-150.0,0.00022387,2]
[318942773,1710462636436,-150.0,0.0002242,2]
[318942774,1710462636445,-150.0,0.00022431,2]
[318942775,1710462636455,-150.0,0.00022435,2]
[318942776,1710462636465,-150.0,0.00022437,2]
[318942777,1710462636475,-150.0,0.00022444,2]
[318942778,1710462636485,-150.0,0.00022451,2]
[318942779,1710462636494,-150.0,0.00022472,2]
[318942780,1710462636504,-150.0,0.00022473,2]
[318942781,1710462636513,-150.0,0.00022474,2]
[318942782,1710462636523,-150.37543722,0.00022495,2]
[318942783,1710462636532,-2900.0,0.000225,15]
[318942784,1710462636542,-1500.0,0.000225,2]
[318942785,1710462636552,-257.485408,0.0002253,2]
[318942786,1710462636562,-150.0,0.00022541,2]
[318942787,1710462636571,-150.0,0.00022556,2]
[318942788,1710462636582,-300.0,0.00022585,2]
[318942789,1710462636592,-1151.74368271,0.00022604,2]
[318942790,1710462636602,-150.0,0.00022623,2]
[318942791,1710462636611,-150.0,0.0002266,2]
[318942792,1710462636621,-150.37543722,0.00022684,2]
[318942793,1710462636631,-150.0,0.00022692,2]
[318942794,1710462636641,-150.0,0.00022704,2]
[318942795,1710462636654,-222.0,0.0002271,15]
[318942796,1710462636663,-150.0,0.00022731,2]
[318942797,1710462636673,-150.0,0.00022751,2]
[318942798,1710462636683,-150.0,0.00022758,2]
[318942799,1710462636692,-150.0,0.00022759,2]
[318942800,1710462636701,-150.0,0.00022764,2]
[318942801,1710462636711,-150.0,0.00022764,2]
[318942802,1710462636720,-150.0,0.00022768,2]
[318942803,1710462636730,-150.0,0.00022771,2]
[318942804,1710462636739,-150.0,0.00022779,2]
[318942805,1710462636748,-150.0,0.00022781,2]
[318942806,1710462636758,-300.0,0.00022782,2]
[318942807,1710462636768,-150.0,0.00022782,2]
[318942808,1710462636779,-150.0,0.00022782,2]
[318942809,1710462636788,-1500.0,0.00022789,2]
[318942810,1710462636798,-150.0,0.00022791,2]
[318942811,1710462636809,-150.0,0.00022796,2]
[318942812,1710462636819,-152.66369781,0.00022799,2]
[318942813,1710462636828,-150.0,0.00022801,2]
[318942814,1710462636839,-1059.98389948,0.00022812,2]
[318942815,1710462636848,-150.0,0.00022814,2]
[318942816,1710462636857,-150.0,0.00022816,2]
[318942817,1710462636866,-150.0,0.00022824,2]
[318942818,1710462636876,-150.0,0.00022825,2]
[318942819,1710462636885,-150.0,0.00022826,2]
[318942820,1710462636894,-150.0,0.0002283,2]
[318942821,1710462636908,-150.0,0.0002283,2]
[318942822,1710462636917,-150.0,0.00022831,2]
[318942823,1710462636927,-150.0,0.00022841,2]
[318942824,1710462636936,-150.0,0.00022866,2]
[318942825,1710462636945,-150.0,0.00022868,2]
[318942826,1710462636955,-150.0,0.0002287,2]
[318942827,1710462636964,-150.0,0.0002287,2]
[318942828,1710462636974,-150.37543722,0.00022873,2]
[318942829,1710462636983,-150.0,0.00022873,2]
[318942830,1710462636992,-150.0,0.00022882,2]
[318942831,1710462637002,-150.0,0.00022882,2]
[318942832,1710462637011,-300.0,0.00022885,2]
[318942833,1710462637020,-1500.0,0.0002289,2]
[318942834,1710462637029,-1500.0,0.00022894,2]
[318942835,1710462637039,-539.67217888,0.000229,2]
[318942836,1710462637048,-150.0,0.000229,2]
[318942837,1710462637057,-250.0,0.000229,2]
[318942838,1710462637066,-150.0,0.00022901,2]
[318942839,1710462637075,-150.0,0.00022907,2]
[318942840,1710462637085,-150.0,0.00022908,2]
[318942841,1710462637094,-150.0,0.00022908,2]
[318942842,1710462637103,-150.0,0.00022913,2]
[318942843,1710462637113,-1500.0,0.00022916,2]
[318942844,1710462637122,-150.0,0.00022917,2]
[318942845,1710462637131,-150.0,0.00022917,2]
[318942846,1710462637140,-150.0,0.00022918,2]
[318942847,1710462637152,-150.0,0.00022921,2]
[318942848,1710462637161,-150.0,0.00022925,2]
[318942849,1710462637173,-195.81247102,0.00022926,2]
[318942850,1710462637182,-1500.0,0.0002293,2]
[318942851,1710462637191,-150.0,0.00022935,2]
[318942852,1710462637201,-150.0,0.00022936,2]
[318942853,1710462637210,-150.0,0.00022941,2]
[318942854,1710462637220,-150.0,0.00022943,2]
[318942855,1710462637230,-150.0,0.00022945,2]
[318942856,1710462637239,-150.0,0.00022947,2]
[318942857,1710462637249,-150.0,0.00022966,2]
[318942858,1710462637259,-150.0,0.00022976,2]
[318942859,1710462637268,-150.0,0.00022977,2]
[318942860,1710462637277,-150.0,0.00022979,2]
[318942861,1710462637286,-150.0,0.0002298,2]
[318942862,1710462637296,-150.0,0.00022983,2]
[318942863,1710462637305,-150.0,0.00022987,2]
[318942864,1710462637315,-200.0,0.00022991,2]
[318942865,1710462637325,-150.0,0.00022991,2]
[318942866,1710462637334,-183.15425527,0.00022991,2]
[318942867,1710462637344,-150.0,0.00022993,2]
[318942868,1710462637354,-150.0,0.00022995,2]
[318942869,1710462637364,-360.18194973,0.00022999,10]
[318942870,1710462637374,-360.18194974,0.00022999,10]
[318942871,1710462637383,-405.87562864,0.00023,2]
[318942872,1710462637394,-42465.42686477,0.00023,2]
[318942873,1710462637406,-305.93072842,0.00023,2]
[318942874,1710462637415,-2197.18199217,0.00023,2]
[318942875,1710462637426,-182773.72969189,0.00023,7]
[318942876,1710462637437,-321.56256532,0.00023,2]
[318942877,1710462637447,-200.0,0.00023,5]
[318942878,1710462637459,-600.0,0.00023,3]
[318942879,1710462637469,-151.0,0.00023,7]
[318942880,1710462637480,-208.93834,0.00023,7]
[318942881,1710462637490,-1500.0,0.00023,2]
[318942882,1710462637499,-150.0,0.00023009,2]
[318942883,1710462637509,-2000.0,0.0002301,2]
[318942884,1710462637518,-200.0,0.0002301,2]
[318942885,1710462637528,-2000.0,0.0002301,2]
[318942886,1710462637537,-200.0,0.0002301,2]
[318942887,1710462637546,-500.0,0.00023014,2]
[318942888,1710462637556,-151.36,0.00023014,2]
[318942889,1710462637566,-150.37543722,0.00023062,2]
[318942890,1710462637575,-250.0,0.00023174,2]
[318942891,1710462637588,-2000.0,0.0002324,2]
[318942892,1710462637598,-200.0,0.0002324,2]
[318942893,1710462637607,-2000.0,0.0002324,2]
[318942894,1710462637617,-200.0,0.0002324,2]
[318942895,1710462637627,-150.37543722,0.00023251,2]
[318942896,1710462637638,-155.0,0.00023288,2]
[318942897,1710462637650,-150.37543722,0.00023441,2]
[318942898,1710462637660,-250.0,0.00023448,2]
[318942899,1710462637670,-2000.0,0.00023473,2]
[318942900,1710462637679,-200.0,0.00023473,2]
[318942901,1710462637689,-2000.0,0.00023473,2]
[318942902,1710462637698,-200.0,0.00023473,2]
[318942903,1710462637707,-24026.45412817,0.00023486,2]
[318942904,1710462637716,-1918.24919264,0.0002354,2]
[318942905,1710462637726,-1338.84711234,0.0002358,2]
[318942906,1710462637735,-150.37543722,0.0002363,2]
[318942907,1710462637744,-16744.0,0.00023699,2]
[318942908,1710462637753,-2000.0,0.00023707,2]
[318942909,1710462637763,-200.0,0.00023707,2]
[318942910,1710462637772,-2000.0,0.00023707,2]
[318942911,1710462637781,-200.0,0.00023707,2]
[318942912,1710462637791,-159.86,0.00023714,2]
[318942913,1710462637800,-4108.74,0.00023811,2]
[318942914,1710462637809,-150.37543722,0.00023819,2]
[318942915,1710462637819,-2000.0,0.00023836,2]
[318942916,1710462637828,-168.38,0.00023914,2]
[318942917,1710462637837,-2000.0,0.00023944,2]
[318942918,1710462637847,-200.0,0.00023944,2]
[318942919,1710462637856,-2000.0,0.00023944,2]
[318942920,1710462637866,-200.0,0.00023944,2]
[318942921,1710462637876,-630.08,0.00023967,2]
[318942922,1710462637885,-151.36,0.00023973,2]
[318942923,1710462637895,-3000.0,0.0002399,2]
[318942924,1710462637908,-540.88171398,0.00024,15]
[318942925,1710462637917,-155.0,0.00024,2]
[318942926,1710462637926,-530.76010414,0.00024,30]
[318942927,1710462637935,-178.2,0.00024,2]
[318942928,1710462637945,-150.37543722,0.00024008,2]
[318942929,1710462637955,-154.41,0.00024186,2]
[318942930,1710462637964,-150.37543722,0.00024197,2]
[318942931,1710462637974,-411.0,0.00024322,2]
[318942932,1710462637984,-10029.20051589,0.0002433,2]
[318942933,1710462637993,-200.0,0.00024372,2]
[318942934,1710462638003,-800.0,0.00024372,2]
[318942935,1710462638012,-200.0,0.00024372,2]
[318942936,1710462638022,-500.0,0.00024372,2]
[318942938,1710462638031,-200.0,0.00024372,2]
[318942939,1710462638041,-150.37543722,0.00024386,2]
[318942940,1710462638050,-211.43,0.00024469,2]
[318942941,1710462638059,-584.34,0.0002453,2]
[318942943,1710462638069,-356.4,0.00024548,2]
[318942945,1710462638079,-150.37543722,0.00024576,2]
[318942947,1710462638088,-495.93,0.00024602,2]
[318942949,1710462638098,-1500.0,0.00024658,8]
[318942951,1710462638107,-155.0,0.00024658,2]
[318942953,1710462638117,-150.37543722,0.00024765,2]
[318942955,1710462638127,-539.67217885,0.0002489,2]
[318942957,1710462638136,-180.74298059,0.000249,2]
[318942959,1710462638146,-26172.11290916,0.000249,2]
[318942962,1710462638158,-10765.88886012,0.000249,2]
[318942965,1710462638168,-13413.51096524,0.000249,2]
[318942968,1710462638178,-151.36,0.00024932,2]
[318942971,1710462638187,-150.37543722,0.00024954,2]
[318942973,1710462638197,-93504.70548747,0.00025,30]
[318942975,1710462638206,-362619.9621717,0.00025,4]
[318943002,1710462638672,-1470.01595756,0.00025,4]
[318943005,1710462640593,-15004.86662894,0.00025,4]
[318943006,1710462640602,-650.0,0.00025,3]
[318943007,1710462640611,-151.0,0.00025,7]
[318943008,1710462640622,-1000.0,0.00025,2]
[318943009,1710462640631,-174.1890546,0.00025043,2]
[318943010,1710462640641,-165.33491132,0.00025043,2]
[318943011,1710462640652,-241.0,0.00025049,2]
[318943012,1710462640662,-208.65915766,0.00025071,2]
[318943013,1710462640672,-13921.6219295,0.00025081,7]
[318943014,1710462640682,-118991.850887,0.00025081,7]
[318943015,1710462640693,-150.37543722,0.00025143,2]
[318943016,1710462640702,-408.2,0.00025238,2]
[318943017,1710462640712,-921.95,0.00025238,2]
[318943018,1710462640721,-408.2,0.00025238,2]
[318943019,1710462640731,-921.95,0.00025238,2]
[318943020,1710462640740,-921.95,0.00025238,2]
[318943021,1710462640751,-408.2,0.00025238,2]
[318943022,1710462640762,-408.2,0.00025238,2]
[318943023,1710462640771,-921.95,0.00025238,2]
[318943024,1710462640781,-921.95,0.00025238,2]
[318943025,1710462640790,-408.2,0.00025238,2]
[318943026,1710462640800,-236.18,0.00025238,2]
[318943027,1710462640809,-408.2,0.00025238,2]
[318943028,1710462640818,-1843.26,0.00025238,2]
[318943029,1710462640829,-408.2,0.00025238,2]
[318943030,1710462640839,-408.2,0.00025238,2]
[318943031,1710462640849,-408.2,0.00025238,2]
[318943032,1710462640860,-408.2,0.00025238,2]
[318943033,1710462640869,-408.2,0.00025238,2]
[318943034,1710462640879,-671.94,0.00025238,2]
[318943035,1710462640888,-408.2,0.00025238,2]
[318943036,1710462640897,-408.2,0.00025238,2]
[318943037,1710462640910,-408.2,0.00025238,2]
[318943038,1710462640920,-592.33,0.00025238,2]
[318943039,1710462640929,-921.95,0.00025315,2]
[318943040,1710462640940,-921.95,0.00025315,2]
[318943041,1710462640950,-1843.23,0.00025315,2]
[318943042,1710462640960,-921.95,0.00025315,2]
[318943043,1710462640969,-921.95,0.00025315,2]
[318943044,1710462640979,-150.37543722,0.00025332,2]
[318943045,1710462640989,-408.2,0.00025479,2]
[318943046,1710462640999,-150.37543722,0.00025522,2]
[318943047,1710462641010,-292.88281304,0.0002553,2]
[318943048,1710462641019,-292.88281293,0.0002553,2]
[318943049,1710462641029,-292.88281293,0.0002553,2]
[318943050,1710462641038,-292.88281293,0.0002553,2]
[318943051,1710462641047,-292.88281293,0.0002553,2]
[318943052,1710462641056,-292.88281293,0.0002553,2]
[318943053,1710462641066,-292.88281293,0.0002553,2]
[318943054,1710462641075,-6811.13690722,0.00025625,2]
[318943055,1710462641089,-4433.15556684,0.00025625,2]
[318943056,1710462641101,-1517.98820912,0.00025625,2]
[318943057,1710462641129,-13409.83222592,0.00025625,2]
[318943058,1710462641139,-150.37543722,0.00025711,2]
[318943059,1710462641152,-200.0,0.00025752,2]
[318943060,1710462641161,-151.36,0.0002589,2]
[318943061,1710462641170,-150.37543722,0.000259,2]
[318943062,1710462641179,-4210.51914777,0.00026,2]
[318943063,1710462641188,-604.0,0.00026,2]
[318943064,1710462641197,-716.97652128,0.00026,3]
[318943065,1710462641230,-7174.09917728,0.00026,3]
[318943066,1710462641241,-8159.52045029,0.00026,3]
[318943067,1710462641253,-62855.40385115,0.00026,3]
[318943068,1710462641262,-155.0,0.00026028,2]
[318943069,1710462641271,-292.88281293,0.0002605,2]
[318943070,1710462641281,-150.0,0.00026079,2]
[318943071,1710462641290,-168.38,0.00026088,2]
[318943072,1710462641299,-150.37543722,0.00026089,2]
[318943073,1710462641309,-630.08,0.00026146,2]
[318943074,1710462641318,-171.24,0.00026147,2]
[318943075,1710462641328,-829.08,0.00026196,2]
[318943076,1710462641340,-516.4,0.00026196,2]
[318943077,1710462641349,-373.8,0.00026196,2]
[318943078,1710462641359,-291.42,0.00026196,2]
[318943079,1710462641368,-232.26,0.00026196,2]
[318943080,1710462641378,-277.22,0.00026196,2]
[318943081,1710462641388,-309.93,0.00026196,2]
[318943082,1710462641397,-150.0,0.00026196,2]
[318943083,1710462641409,-150.0,0.00026196,2]
[318943084,1710462641419,-150.0,0.00026196,2]
[318943085,1710462641428,-414.68,0.00026196,2]
[318943086,1710462641438,-150.0,0.00026196,2]
[318943087,1710462641447,-516.4,0.00026196,2]
[318943088,1710462641457,-300.0,0.00026196,2]
[318943089,1710462641466,-151.06,0.00026196,2]
[318943090,1710462641475,-150.0,0.00026196,2]
[318943091,1710462641485,-414.68,0.00026196,2]
[318943092,1710462641494,-516.4,0.00026196,2]
[318943093,1710462641503,-150.0,0.00026196,2]
[318943094,1710462641512,-150.0,0.00026196,2]
[318943095,1710462641521,-150.0,0.00026196,2]